Cogmind - Beta 12 @@@ ROGUE MODE // 2023.05.01 @ 22:35:15 Player: Exp. Geonium Core Result: Destroyed by as-46710 with Assembled Heavy Rifle Performance ------------- Evolutions (0) 0 Regions Visited (2) 400 Robots Destroyed (18) 90 Value Destroyed (284) 284 Prototype IDs (0) 0 Alien Tech Used (0) 0 Bonus (0) 0 TOTAL SCORE: 774 Bonus ------- None Cogmind --------- Core Integrity 0/250 Matter 296/300 Energy 125/125 System Corruption 0% Temperature Cool (0) Movement Treading (160) Location -10/Mines Parts ------- > --- POWER (1) -------- Light Ion Engine > --- PROPULSION (2) --- Light Treads Light Treads > --- UTILITY (2) ------ Small Storage Unit Salvage Targeting Computer > --- WEAPON (2) ------- Assault Rifle Light Assault Rifle > --- INVENTORY (8) ---- Ion Engine Light Treads Light Assault Rifle Light Assault Rifle Light Assault Rifle Grenade Launcher Flail Flail Peak State ------------ > --- POWER ------------ Light Ion Engine > --- PROPULSION ------- Aluminum Leg Aluminum Leg > --- UTILITY ---------- Small Storage Unit Salvage Targeting Computer > --- WEAPON ----------- Small Laser Light Assault Rifle > --- INVENTORY -------- Ion Engine Light Treads Light Treads Wheel Compact Wheel Assault Rifle Flail Flail [Rating: 9] Favorites ----------- Power Light Ion Engine Engine Light Ion Engine Propulsion Light Treads Treads Light Treads Leg Aluminum Leg Utility Small Storage Unit Storage Small Storage Unit Processor Salvage Targeting Computer Weapon Light Assault Rifle Energy Gun Small Laser Ballistic Gun Light Assault Rifle Build | -11 -10 -10 ------- Run | Jun Mat Min Slots Evolved . | . . . Power . | . . . Propulsion . | . . . Utility . | . . . Weapon . | . . . Parts Attached 5 | . 5 . Power . | . . . Engine . | . . . Core . | . . . Reactor . | . . . Propulsion 2 | . 2 . Treads 2 | . 2 . Leg . | . . . Wheel . | . . . Hover . | . . . Flight . | . . . Utility 1 | . 1 . Device . | . . . Storage . | . . . Processor 1 | . 1 . Hackware . | . . . Protection . | . . . Artifact . | . . . Weapon 2 | . 2 . Energy Gun . | . . . Energy Cannon . | . . . Ballistic Gun 2 | . 2 . Ballistic Cannon . | . . . Launcher . | . . . Special Weapon . | . . . Impact Weapon . | . . . Slashing Weapon . | . . . Piercing Weapon . | . . . Special Melee Weapon . | . . . Unidentified Prototypes . | . . . Parts Lost 1 | . 1 . Power . | . . . Propulsion . | . . . Utility . | . . . Weapon 1 | . 1 . Highest Loss Streak 1 | . 1 . To Critical Strikes . | . . . Average Slot Usage (%) 97 | . 95 100 Engine 14 | . 14 14 Treads 18 | . 10 28 Leg 9 | . 17 . Storage 14 | . 14 14 Processor 11 | . 10 14 Energy Gun 6 | . 12 . Ballistic Gun 21 | . 15 28 Naked Turns . | . . . Heaviest Build 11 | 10 11 11 Greatest Support 40 | 20 40 40 Greatest Overweight (x) . | . . . Average Overweight (x) . | . . . Largest Inventory Capacity 8 | . 8 8 Average Capacity 8 | . 8 8 Most Carried 8 | . 8 8 Average Carried 7 | . 7 8 Final Capacity 8 | 8 8 8 Final Carried 8 | 6 8 8 Class Distribution -------------------- 100% | Mutant Dominant Class ---------------- Mutant | -10/Materials Mutant | -10/Mines Resources | -11 -10 -10 ----------- Run | Jun Mat Min Matter Collected 423 | 200 127 96 Remotely . | . . . Salvage Created 746 | . 668 78 Parts 42 | . 35 7 Haulers Intercepted 2 | . 2 . Recyclers Shooed 3 | . 3 . Parts Field Recycled . | . . . Retrieved Matter . | . . . Parts Self-Destructed . | . . . Prevented . | . . . Kills | -11 -10 -10 ------- Run | Jun Mat Min Combat Hostiles Destroyed 10 | . 7 3 Guns 10 | . 7 3 Classes Destroyed 8 | . 6 2 Worker 2 | . 1 1 Builder 3 | . 2 1 Hauler 2 | . 2 . Recycler 3 | . 3 . Swarmer 3 | . 3 . Grunt 4 | . 4 . Demolisher 1 | . . 1 Assembled 2 | . . 2 Best Kill Streak 8 | . 8 2 Combat Bots Only 3 | . 3 1 Max Kills in Single Turn 2 | . 2 1 Gunslinging . | . . . Exploded . | . . . Melee . | . . . Uniques/NPCs Destroyed . | . . . Combat | -11 -10 -10 -------- Run | Jun Mat Min Damage Taken 945 | . 366 579 Core 257 | . 53 204 Absorbed by Shields . | . . . Core Remaining (%) 100 | 100 . . Volleys Fired 80 | . 55 25 Largest 2 | . 2 2 Hottest 60 | . 60 40 Shots Fired 156 | . 106 50 Gun 156 | . 106 50 Cannon . | . . . Launcher . | . . . Special . | . . . Kinetic 109 | . 59 50 Thermal 47 | . 47 . Explosive . | . . . Electromagnetic . | . . . Robot Hit Streak 13 | . 13 7 Robot Miss Streak 5 | . 5 5 Penetration Max . | . . . Secondary Targets . | . . . Shots Hit Robots 90 | . 64 26 Core Hits 36 | . 27 9 Critical Kills . | . . . Critical Parts Destroyed . | . . . Critical Strikes . | . . . Melee Attacks . | . . . Impact . | . . . Slashing . | . . . Piercing . | . . . Sneak Attacks . | . . . Combat Hostiles . | . . . Follow-up Attacks . | . . . Damage Inflicted 971 | . 672 299 Guns 969 | . 670 299 Cannons . | . . . Explosions . | . . . Melee . | . . . Ramming 2 | . 2 . Kinetic 606 | . 307 299 Thermal 363 | . 363 . Explosive . | . . . Electromagnetic . | . . . Impact . | . . . Slashing . | . . . Piercing . | . . . Highest Corruption . | . . . Average Corruption . | . . . Corruption Purged . | . . . Corruption Blocked . | . . . Overload Shots . | . . . Overflow Damage . | . . . Projectiles . | . . . Explosions . | . . . Melee . | . . . Knockbacks . | . . . Impact . | . . . Kinetic . | . . . Secondary . | . . . Self-Inflicted Damage . | . . . Shots . | . . . Rammed . | . . . Targets Rammed 1 | . 1 . Kicked 1 | . 1 . Crushed . | . . . Highest Temperature 103 | . 103 . Average Temperature 40 | . 40 . Received Heat Transfer 138 | . 138 . Siege Activations . | . . . Robots Corrupted . | . . . Combat Hostiles . | . . . Parts Fried . | . . . Impact Corruptions . | . . . Robots Melted . | . . . Combat Hostiles . | . . . Parts Melted 1 | . 1 . Heat Transferred 825 | . 825 . Parts Sabotaged . | . . . Parts Stolen . | . . . Parts Stripped . | . . . Power Chain Reactions . | . . . Missiles Intercepted . | . . . Alert | -11 -10 -10 ------- Run | Jun Mat Min Peak Influence 222 | . 222 53 Initial 18 | . . 18 Average 54 | . 74 30 Maximum Alert Level 1 | . 1 . Low Security (%) 98 | . 97 100 Level 1 1 | . 2 . Level 2 . | . . . Level 3 . | . . . Level 4 . | . . . Level 5 . | . . . High Security . | . . . Max Security . | . . . Squads Dispatched . | . . . Investigation . | . . . Extermination . | . . . Reinforcement . | . . . Assault . | . . . Garrison . | . . . Intercept . | . . . Searches Triggered . | . . . Construction Impeded . | . . . Haulers Reinforced . | . . . Active Scanning Responses . | . . . Cargo Convoy Interrupts . | . . . Stealth | -11 -10 -10 --------- Run | Jun Mat Min Distress Signals 2 | . . 2 Communications Jammed . | . . . Distress Signals . | . . . Times Spotted 17 | . 11 6 Peak Tracking Total 4 | . 4 2 Tactical Retreats . | . . . Traps | -11 -10 -10 ------- Run | Jun Mat Min Traps Triggered . | . . . Indirectly . | . . . Trap Hack Attempts . | . . . Triggered . | . . . Disarmed . | . . . Reprogrammed . | . . . Reused . | . . . Traps Extracted . | . . . Installed . | . . . Triggered . | . . . Machines | -11 -10 -10 ---------- Run | Jun Mat Min Machines Disabled . | . . . Max in Single Turn . | . . . Machines Repaired . | . . . Machines Sabotaged . | . . . Overloaded Fab Kills . | . . . Hacking | -11 -10 -10 --------- Run | Jun Mat Min Machines Accessed . | . . . Terminals . | . . . Fabricators . | . . . Repair Stations . | . . . Recycling Units . | . . . Scanalyzers . | . . . Garrison Access . | . . . Total Hacks . | . . . Successful . | . . . Failed . | . . . Catastrophic . | . . . Database Lockouts . | . . . Manual . | . . . Terminals . | . . . Fabricators . | . . . Repair Stations . | . . . Recycling Units . | . . . Scanalyzers . | . . . Garrison Access . | . . . Terminal Hacks . | . . . Fabricator Hacks . | . . . Repair Station Hacks . | . . . Recycling Unit Hacks . | . . . Scanalyzer . | . . . Garrison Access Hacks . | . . . Unauthorized Hacks . | . . . Terminals . | . . . Fabricators . | . . . Repair Stations . | . . . Recycling Units . | . . . Scanalyzers . | . . . Garrison Access . | . . . Data Cores Recovered . | . . . Used . | . . . Hacking Detections . | . . . Full Trace Events . | . . . Feedback Events . | . . . Feedback Blocked . | . . . Robot Schematics Acquired . | . . . Robots Built . | . . . Authchips . | . . . Time . | . . . Total Robot Build Rating . | . . . Part Schematics Acquired . | . . . Parts Built . | . . . Authchips . | . . . Time . | . . . Total Part Build Rating . | . . . Parts Repaired . | . . . Time . | . . . Parts Recycled . | . . . Recycled Matter . | . . . Retrieved Matter . | . . . Retrieved Components . | . . . Parts Scanalyzed . | . . . Part Schematics Acquired . | . . . Parts Damaged . | . . . Bothacking | -11 -10 -10 ------------ Run | Jun Mat Min Used RIF Installer . | . . . Robots Hacked . | . . . Non-combat . | . . . Combat . | . . . Robot Hacks Applied . | . . . Relay Couplers Released . | . . . Fabnet Peak Effective % . | . . . Robots Rewired . | . . . Allies Hacked . | . . . Hacks Repelled . | . . . Allies | -11 -10 -10 -------- Run | Jun Mat Min Total Allies . | . . . Largest Group . | . . . Highest-Rated Group . | . . . Highest-Rated Ally . | . . . Total Orders . | . . . Ally Attacks . | . . . Total Damage . | . . . Kills . | . . . Allies Corrupted . | . . . Allies Melted . | . . . Intel | -11 -10 -10 ------- Run | Jun Mat Min Robot Analysis Total . | . . . Derelict Logs Recovered 2 | . . 2 Drone Launches . | . . . Drone Recoveries . | . . . Exploration | -11 -10 -10 ------------- Run | Jun Mat Min Turns Passed 949 | . 518 431 Spaces Moved 442 | 1 246 195 Core . | . . . Treads 262 | . 67 195 Legs 180 | 1 179 . Wheels . | . . . Hover . | . . . Flight . | . . . Fastest Speed 120 | 120 120 160 Average Speed 143 | 120 130 160 Slowest Speed 160 | 120 160 160 Overloaded Moves . | . . . Propulsion Burnouts . | . . . Robots Hopped . | . . . Cave-ins Triggered . | . . . Exploration Rate (%) 25 | 2 41 33 Regions Visited 2 Branch Regions 1 Pre-discovered Areas . | . . . Known Exits Taken . | . . . Unknown Exits Taken 2 | 1 1 . Scrap Searched . | . . . Spaces Dug . | . . . Terrain Destroyed . | . . . Melee . | . . . Projectile . | . . . AOE . | . . . Terrain Rammed . | . . . Walls Destroyed . | . . . Machines Disabled . | . . . Actions | -11 -10 -10 --------- Run | Jun Mat Min Total 617 | . 347 270 Wait 79 | . 29 50 Move 440 | . 245 195 Hop . | . . . Pick Up 7 | . 7 . Fast Attach 2 | . 2 . Attach 3 | . 3 . Detach . | . . . Swap . | . . . Drop 5 | . 5 . Fire 80 | . 55 25 Melee . | . . . Ram . | . . . Kick 1 | . 1 . Crush . | . . . Escape Stasis . | . . . Rewire . | . . . Trap . | . . . Miscellaneous . | . . . Route ------- -11/Junkyard -10/Materials (discovered 2 exits: [*Mat] / [*Min]) -10/Mines (discovered 1 exit: [*Mat]) History --------- Turn | Location | Event 1 | -11/Junkyard | Discovered new exit (range 0) 1 | -11/Junkyard | Entered Materials 158 | -10/Materials | Discovered new exit (range 8) 197 | -10/Materials | Discovered new exit (range 16) 303 | -10/Materials | Build established: Mutant 519 | -10/Materials | Entered Mines 522 | -10/Mines | Met a Derelict bent on vengeance 537 | -10/Mines | Learned Materials terminal intel 562 | -10/Mines | Assembled infested the area 607 | -10/Mines | Learned Materials stockpile data 739 | -10/Mines | Core integrity fell below 50% 882 | -10/Mines | Discovered new exit (range 5) 950 | -10/Mines | Core integrity fell below 20% 950 | -10/Mines | Destroyed by as-46710 with Assembled Heavy Rifle Last Messages --------------- 00814_ U-05 Engineer destroyed. 00821_ Acquired 60 matter. 00875_ K-01 Serf collects debris. 00882_ EXIT=FOUND 00909_ K-01 Serf destroyed. 00909_ K-01 Serf collects debris. 00917_ K-01 Serf destroyed. 00917_ R-06 Scavenger collects Med. Matter Pod. 00921_ K-01 Serf collects debris. 00921_ R-06 Scavenger collects Sml. Storage Unit. 00924_ K-01 Serf collects debris. 00924_ R-06 Scavenger collects Wheel. 00927_ K-01 Serf destroyed. 00928_ R-06 Scavenger collects Aluminum Leg. 00934_ Acquired 5 matter. 00936_ Acquired 18 matter. 00937_ Acquired 9 matter. 00940_ as-97504 destroyed. 00941_ Acquired 1 matter. 00944_ Acquired 3 matter. Map ----- +----------------------------------------------------+ | | | | | | | | | | | ?????????????????????????????????????????????????? | | ??????????????????????????????????#######????????? | | ???????????########???#####???????# #????????? | | ???????????# #???# ##??????# ### #????????? | | ???????????# #???# #??????# #?# ##???????? | | ???????????# #??## ######?# #?# #???????? | | ???????????# < #??# %! ### #?# ##??????? | | ???????????# #?## =* ### ##?????? | | ???????????#### #### %%#### ###### #?????? | | ??????????????# %%% % ! !#??# #??## #?????? | | ??????????????# %%% %= #??# #### #?????? | | ??????????????########%=%*##??# %% ##?????? | | ?????????????????????#%*= ##??####### ##?????? | | ?????????????????????#%!!= ##???????## |##?????? | | ?????????????????????#%*!|! ##???????# ##%##?????? | | ?????????????????????## !%! #???????# # *!#?????? | | ??????????????????????##%!% #???????# ## ##?????? | | ???????????????????????# != ##???## # ## ##?????? | | ???????????????????????##|===*###?# # #?????## | | ????????????????????????#%a!%% ### #### #????## | | ????????????????????????#@%*== ####?# #????# | | ????????????????????????##a= #????### ###### | | ??????????????????????????%* ##?????# ## | | ??????????????????????????=== ##??????## " | | ??????????????????????????*% ##????????### | | ??????????????????????????! #???????????## | | ?????????????????????????? ##????????????## | | ?????????????????????????? #??????????????## | | ??????????????????????????" #???????????????# | | ???????????????????????????" ????????######## | | ???????????????????????????" ?????? | | ???????????????????????????? ???? | | ????????????????????????????###?????########## ## | | ??????????????????????????????##?????????????### | | ?????????????????????????????? #??????????????## | | ??????????????????????????????# #???????????????## | | ??????????????????????????????# #????????????????# | | ??????????????????????????????# #????????????????? | | ??????????????????????????????# #????????????????? | | ??????????????????????????????# #????????????????? | | ??????????????????????????????# #????????????????? | | ??????????????????????????????# #######??????????? | | ??????????????????????????????# #??????????? | | ??????????????????????????????####### #??????##### | | ????????????????????????????????????# #?????## # | +----------------------------------------------------+ Best States ------------- Heat Dissipation 25 Energy Generation 10 Energy Capacity 125 Matter Stores 300 Matter Capacity 300 Sight Range 16 Terrain Scan Density 10 Evasion (%) 55 Recoil Reduction 2 Salvage Targeting 1 Item Schematics ----------------- None Robot Schematics ------------------ None Fabricated ------------ Nothing Alien Tech Used ----------------- None Achievements -------------- None Challenges ------------ None Game ------ Seed EnhancedTerrainLeg Manual? 0 Play Time 00:07:33 Cumulative 432.1 hours Start 2023.05.01 @ 22:23:52 End 2023.05.01 @ 22:35:15 Sessions 1 Manual Loads 0 Difficulty Rogue Special Mode None Game No. 470 Rogue 470 Adventurer 0 Explorer 0 Win Type - Total 12 Types 8/0/3/1/0/0/0/0/0 Lore% 82 Gallery% 90 Achievement% 80 Wizard Run 0 Options --------- ASCII 0 Keyboard 0 Movement Numpad Keybinds 0 Fullscreen 1 Font 18/Terminus Map View 76x50 Tactical HUD 1 Map Filters NONE Filters NONE Steam 1 RUN: fe30ba5d-b8d7-4f9d-bed4-af2cbc866f08